fUST/lending_fUST_20240603
["ID","MTS","AMOUNT","RATE_DAILY","PERIOD"]
[328470295,1717423847605,-500.0,0.00027999,2]
[328470297,1717423847614,-261.12764027,0.00028,2]
[328470299,1717423847624,-9498.42860655,0.00028,2]
[328470301,1717423847634,-47761.44900833,0.00028,7]
[328472162,1717423903841,156.98418007,0.00015,2]
[328472168,1717424008645,155.15160204,0.00015,2]
[328472169,1717424028595,155.00465014,0.00015,2]
[328472170,1717424046586,155.08068313,0.00015,2]
[328472173,1717424312650,50018.06467479,9.99e-05,10]
[328472175,1717424543376,1280.67003979,9.999e-05,2]
[328472176,1717424566834,154.87609912,9.999e-05,2]
[328472177,1717424567012,1316.04256424,9.999e-05,2]
[328472181,1717424826338,-353.74842101,0.00021749,2]
[328472182,1717424904148,1099.5217014,0.00015,2]
[328472183,1717424910026,2639.9956011,9.999e-05,2]
[328472184,1717424948152,-784.68178207,0.00021749,2]
[328472185,1717424948175,-224.93840949,0.00021749,2]
[328472186,1717424948197,-461.8019537,0.00021749,2]
[328472187,1717424948225,-10476.6863812,0.0002424,2]
[328472188,1717424948245,-3000.0,0.00024241,2]
[328472189,1717424948266,-240.650642,0.00025128,2]
[328472190,1717424948285,-166.666666,0.0002514,2]
[328472191,1717424948304,-423.00895628,0.0002531,2]
[328472192,1717424948336,-24476.99104372,0.0002531,2]
[328472193,1717424948359,-161.5500171,0.000258,2]
[328472194,1717424948381,-253.16155284,0.000259,2]
[328472195,1717424948400,-166.666666,0.00026,2]
[328472196,1717424963842,300.93676126,0.00021749,2]
[328472197,1717424963942,461.52598372,0.00021749,2]
[328472198,1717425008528,500.0,0.00025309,2]
[328472208,1717425033760,168.77436856,0.0002321,2]
[328472209,1717425034443,-6073.0733073,0.00026241,2]
[328472210,1717425034453,-750.0,0.00026849,2]
[328472211,1717425034463,-153.2,0.000269,3]
[328472212,1717425034472,-153.2,0.000269,3]
[328472213,1717425034482,-153.2,0.000269,3]
[328472214,1717425034492,-153.2,0.000269,3]
[328472215,1717425034503,-153.2,0.000269,3]
[328472216,1717425034512,-42.9266927,0.000269,3]
[328472217,1717425034525,-110.2733073,0.000269,3]
[328472218,1717425034535,-153.2,0.000269,3]
[328472219,1717425034545,-153.2,0.000269,3]
[328472220,1717425034555,-154.1193195,0.0002728,2]
[328472221,1717425034564,-6921.54006246,0.00027286,2]
[328472222,1717425036196,762.0201281,0.00025309,2]
[328472253,1717425038521,-5005.00341216,0.00027286,2]
[328472255,1717425038534,-16759.18081085,0.00027286,2]
[328472257,1717425038544,-151.0,0.00027288,7]
[328472259,1717425038553,-153.1232717,0.00027301,2]
[328472261,1717425038563,-583.2560174,0.0002746,2]
[328472263,1717425038573,-205.0258957,0.0002746,2]
[328472265,1717425038583,-205.0258957,0.0002746,2]
[328472267,1717425038592,-205.0258957,0.0002746,2]
[328472269,1717425038601,-439.3344496,0.0002746,2]
[328472271,1717425038610,-157.78742737,0.00027549,2]
[328472273,1717425038620,-153.1232717,0.00027628,2]
[328472275,1717425038630,-157.78742737,0.00027663,2]
[328472277,1717425038640,-154.1193195,0.00027691,2]
[328472279,1717425038650,-153.2,0.000277,3]
[328472281,1717425038659,-153.2,0.000277,3]
[328472283,1717425038669,-153.2,0.000277,3]
[328472285,1717425038680,-153.2,0.000277,3]
[328472287,1717425038689,-153.2,0.000277,3]
[328472289,1717425038698,-153.2,0.000277,3]
[328472291,1717425038707,-153.2,0.000277,3]
[328472293,1717425038716,-153.2,0.000277,3]
[328472295,1717425038726,-154.1193195,0.00027792,2]
[328472297,1717425038735,-246.69099791,0.00027796,2]
[328472299,1717425038748,-2406.44360142,0.00027796,2]
[328472301,1717425038758,-967.69238108,0.000278,2]
[328472303,1717425038770,-32.30761892,0.000278,2]
[328472305,1717425038780,-1000.0,0.000278,3]
[328472307,1717425038790,-1000.0,0.000278,4]
[328472309,1717425038800,-1000.0,0.000278,5]
[328472311,1717425038810,-500.0,0.00027816,2]
[328472313,1717425038820,-500.0,0.00027816,2]
[328472315,1717425038830,-154.1193195,0.00027836,2]
[328472318,1717425038839,-151.0,0.00027859,7]
[328472319,1717425038849,-154.1193195,0.00027936,2]
[328472321,1717425038859,-500.0,0.00027998,2]
[328472324,1717425038868,-500.0,0.00027998,2]
[328472325,1717425038878,-500.0,0.00027999,2]
[328472327,1717425038888,-500.0,0.00027999,2]
[328472329,1717425038897,-500.0,0.00027999,2]
[328472331,1717425038907,-500.0,0.00027999,2]
[328472334,1717425038917,-500.0,0.00027999,2]
[328472336,1717425038930,-188.89,0.00027999,2]
[328472338,1717425038938,-164.85842101,0.00027999,2]
[328472339,1717425038947,-225.0,0.00027999,2]
[328472341,1717425038956,-521.444259,0.00027999,2]
[328472343,1717425038966,-4939.55099167,0.00028,7]
[328472346,1717425038975,-1000.0,0.00028,4]
[328472347,1717425038985,-9498.42860655,0.00028,2]
[328472350,1717425038995,-335.59690209,0.00028,2]
[328472352,1717425039004,-752.96261549,0.00028,2]
[328472353,1717425039014,-1827.285119,0.00028,2]
[328472371,1717425039183,-157.78742737,0.00028074,2]
[328472373,1717425039194,-154.1193195,0.00028174,2]
[328472375,1717425039206,-154.1193195,0.00028175,2]
[328472377,1717425039217,-154.1193195,0.00028195,2]
[328472379,1717425039228,-1000.0,0.000282,6]
[328472381,1717425039239,-157.78742737,0.00028201,2]
[328472383,1717425039251,-157.78742737,0.00028203,2]
[328472385,1717425039261,-168.77436856,0.0002821,2]
[328472387,1717425039271,-154.1193195,0.00028249,2]
[328472389,1717425039280,-500.0,0.00028272,2]
[328472391,1717425039291,-228.45,0.00028273,2]
[328472393,1717425039302,-500.0,0.00028273,2]
[328472394,1717425039313,-154.1193195,0.00028286,2]
[328472396,1717425039323,-154.1193195,0.00028298,2]
[328472398,1717425039334,-154.1193195,0.00028328,2]
[328472400,1717425039344,-154.1193195,0.00028341,2]
[328472402,1717425039354,-157.78742737,0.00028349,2]
[328472404,1717425039365,-154.1193195,0.00028387,2]
[328472406,1717425039375,-285.92152819,0.000284,2]
[328472408,1717425039386,-151.0,0.00028429,7]
[328472410,1717425039396,-157.78742737,0.00028443,2]
[328472412,1717425039406,-157.78742737,0.00028446,2]
[328472414,1717425039416,-285.92152817,0.000285,2]
[328472416,1717425039429,-153.2,0.000285,3]
[328472418,1717425039438,-153.2,0.000285,3]
[328472420,1717425039447,-153.2,0.000285,3]
[328472422,1717425039457,-153.2,0.000285,3]
[328472425,1717425039477,-153.2,0.000285,3]
[328472428,1717425039489,-153.2,0.000285,3]
[328472430,1717425039499,-153.2,0.000285,3]
[328472432,1717425039510,-153.2,0.000285,3]
[328472434,1717425039520,-1000.0,0.000285,2]
[328472436,1717425039530,-500.0,0.00028546,2]
[328472438,1717425039541,-500.0,0.00028547,2]
[328472440,1717425039551,-478.8809036,0.00028598,2]
[328472442,1717425039561,-444.13177711,0.00028598,2]
[328472444,1717425039572,-285.92152817,0.00028599,2]
[328472446,1717425039582,-868.88,0.00028679,3]
[328472448,1717425039594,-270.78,0.00028679,3]
[328472450,1717425039604,-2124.17,0.00028679,3]
[328472452,1717425039615,-164.35,0.00028679,3]
[328472454,1717425039625,-2549.01,0.0002868,3]
[328472456,1717425039635,-154.1193195,0.00028687,2]
[328472458,1717425039645,-500.0,0.00028688,2]
[328472460,1717425039656,-500.0,0.00028689,2]
[328472463,1717425039666,-500.0,0.00028689,2]
[328472465,1717425039678,-432.69773293,0.00028689,2]
[328472467,1717425039688,-348.88197695,0.00028689,2]
[328472469,1717425039697,-500.0,0.00028689,2]
[328472471,1717425039707,-500.0,0.00028689,2]
[328472473,1717425039717,-500.0,0.00028689,2]
[328472475,1717425039727,-468.02007721,0.00028689,2]
[328472477,1717425039736,-500.0,0.00028689,2]
[328472478,1717425039746,-500.0,0.00028689,2]
[328472480,1717425039756,-275.41435122,0.00028689,2]
[328472483,1717425039767,-500.0,0.00028689,2]
[328472485,1717425039777,-500.0,0.00028689,2]
[328472487,1717425039787,-500.0,0.00028689,2]
[328472489,1717425039798,-500.0,0.00028689,2]
[328472491,1717425039808,-500.0,0.00028689,2]
[328472493,1717425039819,-341.55554656,0.00028689,2]
[328472495,1717425039829,-500.0,0.00028689,2]
[328472497,1717425039840,-500.0,0.00028689,2]
[328472499,1717425039850,-500.0,0.00028689,2]
[328472501,1717425039861,-176.80701826,0.00028689,2]
[328472503,1717425039872,-542.46769463,0.00028689,2]
[328472505,1717425039882,-361.69907222,0.00028689,2]
[328472507,1717425039893,-500.0,0.00028689,2]
[328472509,1717425039905,-500.0,0.00028689,2]
[328472511,1717425039916,-500.0,0.00028689,2]
[328472513,1717425039929,-500.0,0.00028689,2]
[328472515,1717425039939,-500.0,0.00028689,2]
[328472517,1717425039949,-332.32043623,0.00028689,2]
[328472520,1717425039960,-500.0,0.00028689,2]
[328472523,1717425039971,-63361.82048982,0.0002869,2]
[328472526,1717425039981,-285.92152817,0.00028699,2]
[328472530,1717425039992,-154.1193195,0.0002872,2]
[328472534,1717425040002,-285.92152817,0.00028798,2]
[328472536,1717425040013,-500.0,0.00028799,2]
[328472538,1717425040023,-500.0,0.00028799,2]
[328472540,1717425040034,-500.0,0.00028799,2]
[328472542,1717425040044,-500.0,0.00028799,2]
[328472544,1717425040054,-12973.71924757,0.000288,7]
[328472546,1717425040064,-5491.00310214,0.000288,7]
[328472548,1717425040075,-105000.0,0.000288,15]
[328472550,1717425040086,-361.8330765,0.0002882,2]
[328472552,1717425040096,-583.35,0.00028821,2]
[328472554,1717425040106,-154.1193195,0.00028854,2]
[328472556,1717425040116,-3514.97337661,0.00028897,3]
[328472558,1717425040131,-5353.03999993,0.00028897,3]
[328472718,1717425042116,-168.7478624,0.00026523,2]
[328472720,1717425042126,-253.74198634,0.00028,2]
[328472722,1717425042140,-1770.15,0.0002868,3]
[328472723,1717425042150,-3049.25863713,0.00028897,3]
[328472754,1717425042486,-41082.78216119,0.00028897,3]
[328472756,1717425042500,-334.02454446,0.00028897,3]
[328472779,1717425042763,-16278.87136777,0.00028897,3]
[328472781,1717425042778,-10286.266437,0.00028897,3]
[328472783,1717425042793,-8988.78347591,0.00028897,3]
[328472786,1717425042802,-2000.0,0.00028898,2]
[328472788,1717425042811,-500.0,0.00028899,2]
[328472790,1717425042821,-500.0,0.00028899,2]
[328472792,1717425042832,-1619.40912337,0.00028969,2]
[328472794,1717425042841,-164.35,0.00028987,3]
[328472796,1717425042851,-253.51892741,0.00028996,2]
[328472798,1717425042860,-500.0,0.00028997,2]
[328472800,1717425042870,-500.0,0.00028997,2]
[328472802,1717425042881,-762.14384206,0.00028998,2]
[328472804,1717425042890,-238.58491264,0.00028998,7]
[328472806,1717425042899,-897.68664681,0.00028998,2]
[328472808,1717425042908,-2708.83090649,0.00028998,2]
[328472810,1717425042918,-1830.16480819,0.00028998,2]
[328472904,1717425043805,-914.36753528,0.00028998,2]
[328472907,1717425043817,-35227.97768973,0.00028998,2]
[328473157,1717425046373,-772.59806713,0.00028998,2]
[328473201,1717425046781,-11497.51909403,0.00028998,2]
[328473205,1717425046793,-155.06191328,0.00028998,2]
[328473208,1717425046803,-155.06191328,0.00028998,2]
[328473211,1717425046813,-479.62201022,0.00028998,2]
[328473214,1717425046823,-2726.33049641,0.00028998,2]
[328473217,1717425046834,-7335.37904907,0.00028998,2]
[328473220,1717425046844,-4309.24514339,0.00028998,2]
[328473222,1717425046853,-156.92310031,0.00028998,2]
[328473225,1717425046863,-1871.97604219,0.00028998,2]
[328473228,1717425046873,-282.07383914,0.00028998,2]
[328473232,1717425046883,-721.35032538,0.00028998,2]
[328473235,1717425046892,-2683.84947927,0.00028998,2]
[328473238,1717425046902,-317.05212667,0.00028998,2]
[328473241,1717425046912,-1499.31190813,0.00028998,2]
[328473244,1717425046921,-179.29117579,0.00028998,2]
[328473247,1717425046937,-1279.88903793,0.00028998,2]
[328473250,1717425046947,-1314.80816716,0.00028998,2]
[328473253,1717425046957,-155.13475127,0.00028998,2]
[328473256,1717425046966,-187.15378643,0.00028998,2]
[328473259,1717425046975,-7264.29425781,0.00028998,2]
[328473261,1717425046984,-1099.33919907,0.00028998,2]
[328473263,1717425046994,-2034.12275766,0.00028998,2]
[328473265,1717425047003,-1416.58362405,0.00028999,4]
[328473267,1717425047012,-500.0,0.00028999,2]
[328473270,1717425047020,-635.46405778,0.00028999,2]
[328473273,1717425047030,-7678.2027443,0.00029,30]
[328473706,1717425052187,762.0201281,0.00025309,2]
[328473708,1717425070205,762.0201281,0.00025309,2]
[328473709,1717425092284,271.1961475,0.00025309,2]
[328473711,1717425116526,500.0,0.00025309,2]
[328473736,1717425254431,273.37336231,9.9e-05,2]
[328473737,1717425263029,273.37336231,9.9e-05,2]
[328473739,1717425271358,273.37336231,9.9e-05,2]
[328473742,1717425280052,273.37336231,9.9e-05,2]
[328473744,1717425289051,273.37336231,9.9e-05,2]
[328473745,1717425297087,273.37336231,9.9e-05,2]
[328473746,1717425305390,273.37336231,9.9e-05,2]
[328473747,1717425307963,300.01081618,9.9e-05,2]
[328473748,1717425309073,154.82968734,9.999e-05,2]
[328473749,1717425316746,1140.43995466,9.9e-05,2]
[328473750,1717425316772,10000.0,9.9e-05,2]
[328473751,1717425316795,5036.82880954,9.9e-05,2]
[328473752,1717425318263,3638.15178216,9.9e-05,2]
[328473753,1717425321964,300.01081618,9.9e-05,2]
[328473754,1717425330754,10448.37694555,9.9e-05,2]
[328473756,1717425337958,300.01081618,9.9e-05,2]
[328473757,1717425338268,3638.15178216,9.9e-05,2]
[328473758,1717425355979,298.56668219,9.9e-05,2]
[328473759,1717425359774,3378.44495426,9.9e-05,2]
[328473760,1717425360281,2400.76381259,9.9e-05,2]
[328473763,1717425370759,8105.06610512,9.9e-05,2]
[328473764,1717425372602,155.79602746,9.9e-05,2]
[328473765,1717425375669,154.82968734,9.9e-05,2]
[328473766,1717425380274,3637.18144934,9.9e-05,2]
[328473767,1717425386070,989.76127447,9.9e-05,2]
[328473769,1717425396276,3637.18144934,9.9e-05,2]
[328473771,1717425399582,155.2451975,9.9e-05,2]
[328473773,1717425416304,3632.86347955,9.9e-05,2]
[328473775,1717425440996,273.37336231,9.9e-05,2]
[328473776,1717425449783,273.37336231,9.9e-05,2]
[328473778,1717425465821,273.37336231,9.9e-05,2]
[328473779,1717425466887,3631.20230829,9.9e-05,2]
[328473780,1717425473846,273.37336231,9.9e-05,2]
[328473781,1717425482743,273.37336231,9.9e-05,2]
[328473782,1717425490834,273.37336231,9.9e-05,2]
[328473783,1717425499158,273.37336231,9.9e-05,2]
[328473784,1717425507746,273.37336231,9.9e-05,2]
[328473785,1717425516015,273.37336231,9.9e-05,2]
[328473786,1717425524006,273.37336231,9.9e-05,2]
[328473787,1717425532385,273.37336231,9.9e-05,2]
[328473788,1717425541018,273.37336231,9.9e-05,2]
[328473791,1717425550344,273.37336231,9.9e-05,2]
[328473792,1717425558984,273.37336231,9.9e-05,2]
[328473793,1717425568449,273.37336231,9.9e-05,2]
[328473794,1717425576642,273.37336231,9.9e-05,2]
[328473795,1717425585181,273.37336231,9.9e-05,2]
[328473796,1717425593130,273.37336231,9.9e-05,2]
[328473797,1717425594293,3635.29267682,9.9e-05,2]
[328473798,1717425601467,273.37336231,9.9e-05,2]
[328473799,1717425608005,299.7786707,9.9e-05,2]
[328473800,1717425609658,273.37336231,9.9e-05,2]
[328473801,1717425619106,273.37336231,9.9e-05,2]
[328473802,1717425623996,299.7786707,9.9e-05,2]
[328473803,1717425627039,273.37336231,9.9e-05,2]
[328473804,1717425630309,3648.4597674,9.9e-05,2]
[328473805,1717425635349,273.37336231,9.9e-05,2]
[328473806,1717425644127,273.37336231,9.9e-05,2]
[328473807,1717425652393,273.37336231,9.9e-05,2]
[328473808,1717425657875,3377.54170379,9.9e-05,2]
[328473809,1717425660558,273.37336231,9.9e-05,2]
[328473810,1717425668756,273.37336231,9.9e-05,2]
[328473811,1717425676987,273.37336231,9.9e-05,2]
[328473812,1717425678000,299.36996738,9.9e-05,2]
[328473813,1717425685575,273.37336231,9.9e-05,2]
[328473814,1717425687772,3377.54170379,9.9e-05,2]
[328473815,1717425693721,273.37336231,9.9e-05,2]
[328473816,1717425702145,273.37336231,9.9e-05,2]
[328473817,1717425710261,273.37336231,9.9e-05,2]
[328473818,1717425718540,273.37336231,9.9e-05,2]
[328473819,1717425719782,2502.48250397,9.9e-05,2]
[328473820,1717425719817,37.36090076,9.9e-05,2]
[328473821,1717425726661,273.37336231,9.9e-05,2]
[328473822,1717425734998,273.37336231,9.9e-05,2]
[328473823,1717425742975,273.37336231,9.9e-05,2]
[328473825,1717425751241,251.08487386,9.9e-05,2]
[328473826,1717425752734,944.85794937,0.00015,2]
[328473827,1717425805295,273.37336231,9.9e-05,2]
[328473828,1717425808818,923.23452736,0.00014,2]
[328473829,1717425808934,157.56331572,9.999e-05,2]
[328473830,1717425820948,247.24939525,9.9e-05,2]
[328473831,1717425825716,155.00620025,0.00015,2]
[328473832,1717425826911,156.76475434,9.999e-05,2]
[328473833,1717425849801,184.33704863,0.00015,2]
[328473834,1717425852828,4624.08874596,9.999e-05,2]
[328473835,1717425868832,507.24507368,9.999e-05,2]
[328473836,1717425933179,-276.01603905,0.00019197,2]
[328473837,1717425936833,2951.54771108,9.999e-05,2]
[328473838,1717425952049,206.96277164,9.999e-05,2]
[328473839,1717426025118,-1280.67003979,0.00019189,2]
[328473840,1717426025139,-1302.0927276,0.00019189,2]
[328473841,1717426038106,-447.01581993,0.00019187,2]
[328473843,1717426052102,-395.15750155,0.00019186,2]
[328473844,1717426148148,-1754.1979692,0.0001853,2]
[328473845,1717426148169,-594.48945359,0.00019184,2]
[328473846,1717426148188,-10476.6863812,0.00019184,2]
[328473847,1717426148206,-1904.10860372,0.00019185,2]
[328473848,1717426148226,-743.58972162,0.00019186,2]
[328473849,1717426148246,-897.68664681,0.00019195,2]
[328473850,1717426148266,-7860.6421153,0.00019196,2]
[328473851,1717426148285,-147.31757095,0.00019197,2]
[328473852,1717426148308,-500.0,0.00020202,2]
[328473853,1717426148328,-500.0,0.00020202,2]
[328473854,1717426148348,-608.37,0.00020202,2]
[328473855,1717426148367,-500.0,0.00020202,2]
[328473856,1717426148385,-566.67,0.00020202,2]
[328473857,1717426148403,-500.0,0.00020202,2]
[328473858,1717426148421,-483.96203151,0.00020202,2]
[328473859,1717426148440,-500.0,0.00020202,2]
[328473860,1717426148458,-500.0,0.00020202,2]
[328473861,1717426148480,-493.45454681,0.00020202,2]
[328473862,1717426148500,-24530.13296189,0.00020202,2]
[328473863,1717426150147,-369.86703811,0.00020202,2]
[328473864,1717426150169,-260.14663723,0.00020372,2]
[328473865,1717426150190,-169.865378,0.00020472,2]
[328473866,1717426150212,-260.14663723,0.0002159,2]
[328473867,1717426150234,-978.95643362,0.00021645,2]
[328473868,1717426150255,-520.54,0.00021736,3]
[328473869,1717426150276,-260.27,0.00021736,3]
[328473870,1717426150299,-780.82,0.00021736,3]
[328473871,1717426150320,-16958.33338923,0.00021746,2]
[328473872,1717426152103,-32424.02368332,0.00021746,2]
[328473873,1717426152126,-537.0,0.00021746,2]
[328473874,1717426152146,-197.13148774,0.00021746,2]
[328473875,1717426152179,-500.0,0.00021746,2]
[328473876,1717426152200,-500.0,0.00021746,2]
[328473877,1717426152221,-500.0,0.00021746,2]
[328473878,1717426152242,-500.0,0.00021746,2]
[328473879,1717426152262,-500.0,0.00021746,2]
[328473880,1717426152285,-500.0,0.00021746,2]
[328473881,1717426152308,-500.0,0.00021746,2]
[328473882,1717426152329,-500.0,0.00021746,2]
[328473883,1717426152350,-440.90547584,0.00021746,2]
[328473884,1717426154151,-59.09452416,0.00021746,2]
[328473885,1717426154172,-500.0,0.00021746,2]
[328473886,1717426154192,-537.87726549,0.00021746,2]
[328473887,1717426154212,-548.66000624,0.00021746,2]
[328473888,1717426154233,-500.0,0.00021746,2]
[328473889,1717426154253,-500.0,0.00021746,2]
[328473890,1717426154273,-289.68839927,0.00021746,2]
[328473891,1717426154293,-500.0,0.00021746,2]
[328473892,1717426154315,-500.0,0.00021746,2]
[328473893,1717426154335,-500.0,0.00021746,2]
[328473894,1717426154356,-500.0,0.00021746,2]
[328473895,1717426154376,-500.0,0.00021746,2]
[328473896,1717426154396,-500.0,0.00021746,2]
[328473897,1717426154416,-500.0,0.00021746,2]
[328473898,1717426154437,-500.0,0.00021746,2]
[328473899,1717426154457,-303.53276026,0.00021746,2]
[328473900,1717426154479,-500.0,0.00021746,2]
[328473901,1717426154498,-187.50890905,0.00021746,2]
[328473902,1717426154519,-500.0,0.00021746,2]
[328473903,1717426154539,-500.0,0.00021746,2]
[328473904,1717426154568,-500.0,0.00021746,2]
[328473905,1717426154590,-500.0,0.00021746,2]
[328473906,1717426154613,-500.0,0.00021746,2]
[328473907,1717426154638,-500.0,0.00021746,2]
[328473908,1717426154659,-500.0,0.00021746,2]
[328473909,1717426154679,-500.0,0.00021746,2]
[328473910,1717426154701,-500.0,0.00021746,2]
[328473911,1717426154722,-500.0,0.00021746,2]
[328473912,1717426154743,-500.0,0.00021746,2]
[328473913,1717426154765,-500.0,0.00021746,2]
[328473914,1717426154786,-500.0,0.00021746,2]
[328473915,1717426154807,-500.0,0.00021746,2]
[328473916,1717426154830,-500.0,0.00021746,2]
[328473917,1717426154855,-648.76578486,0.00021746,2]
[328473918,1717426154881,-206.61390779,0.00021746,2]
[328473919,1717426154902,-500.0,0.00021746,2]
[328473920,1717426154923,-275.41,0.00021746,2]
[328473921,1717426154944,-551.13,0.00021746,2]
[328473922,1717426154967,-317.27820277,0.00021746,2]
[328473923,1717426154989,-373.1251,0.00021746,2]
[328473924,1717426155010,-500.0,0.00021746,2]
[328473925,1717426155031,-500.0,0.00021746,2]
[328473926,1717426155054,-500.0,0.00021746,2]
[328473927,1717426155077,-500.0,0.00021746,2]
[328473928,1717426155100,-500.0,0.00021746,2]
[328473929,1717426155123,-59519.31929914,0.00021747,2]
[328473930,1717426155143,-7227.25399508,0.00021748,2]
[328473931,1717426155164,-244.72765026,0.0002202,2]
[328473932,1717426155185,-260.14663723,0.00022809,2]
[328473933,1717426155209,-6486.85962379,0.00023,7]
[328473934,1717426155231,-29400.77984578,0.00023,2]
[328473935,1717426155253,-978.9564336,0.00023058,2]
[328473936,1717426155274,-1561.6,0.00023106,3]
[328473937,1717426155295,-1041.08,0.00023106,3]
[328473938,1717426155316,-520.54,0.00023106,3]
[328473939,1717426155337,-500.0,0.00023847,2]
[328473940,1717426155361,-500.0,0.00023848,2]
[328473941,1717426155382,-500.0,0.00023849,2]
[328473942,1717426155404,-500.0,0.00023849,2]
[328473943,1717426155426,-500.0,0.00023849,2]
[328473944,1717426155448,-479.4933389,0.00023849,2]
[328473945,1717426155467,-87514.08749766,0.0002385,2]
[328473946,1717426155492,-260.14663723,0.00024027,2]
[328473947,1717426155512,-978.9564336,0.00024471,2]
[328473948,1717426155533,-500.0,0.00025184,2]
[328473949,1717426155691,-260.14663723,0.00025245,2]
[328473950,1717426155712,-500.0,0.00025307,2]
[328473951,1717426155736,-500.0,0.00025308,2]
[328473952,1717426155756,-500.0,0.00025308,2]
[328473953,1717426155775,-762.0201281,0.00025309,2]
[328473954,1717426155795,-12166.54340809,0.00025309,2]
[328473955,1717426155816,-457.17016607,0.00025309,2]
[328473956,1717426155835,-154.82968734,0.00025309,2]
[328473957,1717426155854,-500.0,0.00025309,2]
[328473958,1717426155874,-500.0,0.00025583,2]
[328473959,1717426155893,-2538.13399843,0.00025599,30]
[328473960,1717426155914,-588.8921147,0.00025855,2]
[328473961,1717426155935,-279.0,0.00025857,2]
[328473962,1717426155956,-978.9564336,0.00025884,2]
[328473963,1717426155976,-166.666666,0.00026,2]
[328473964,1717426156242,651.76237209,0.00025299,3]
[328473965,1717426170098,-675.88086637,0.00020871,2]
[328473966,1717426174105,-2273.71744983,0.00025299,3]
[328473967,1717426223029,421.46895263,0.00020202,2]
[328474042,1717426235201,-78.53104737,0.00020202,2]
[328474044,1717426235210,-500.0,0.00020202,2]
[328474046,1717426235220,-500.0,0.00020202,2]
[328474047,1717426235229,-500.0,0.00020202,2]
[328474048,1717426235238,-457.17016607,0.00025299,2]
[328474049,1717426235248,-500.0,0.00026126,2]
[328474050,1717426235257,-750.0,0.00026849,2]
[328474051,1717426235266,-1104.04071803,0.00026898,2]
[328474052,1717426235275,-160.45,0.000269,3]
[328474053,1717426235284,-160.45,0.000269,3]
[328474054,1717426235293,-160.45,0.000269,3]
[328474055,1717426235303,-160.45,0.000269,3]
[328474056,1717426235311,-160.45,0.000269,3]
[328474057,1717426235321,-160.45,0.000269,3]
[328474058,1717426235330,-160.45,0.000269,3]
[328474059,1717426235339,-160.45,0.000269,3]
[328474060,1717426235348,-160.45,0.000269,3]
[328474061,1717426235357,-160.45,0.000269,3]
[328474062,1717426235367,-160.45,0.000269,3]
[328474063,1717426235376,-160.45,0.000269,3]
[328474064,1717426235385,-160.45,0.000269,3]
[328474065,1717426235394,-160.45,0.000269,3]
[328474066,1717426235404,-160.45,0.000269,3]
[328474067,1717426235413,-160.45,0.000269,3]
[328474069,1717426235422,-160.45,0.000269,3]
[328474071,1717426235431,-160.45,0.000269,3]
[328474073,1717426235440,-160.45,0.000269,3]
[328474075,1717426235450,-160.45,0.000269,3]
[328474077,1717426235459,-150.744,0.0002715,2]
[328474079,1717426235468,-228.294,0.0002715,2]
[328474081,1717426235477,-978.9564336,0.00027297,2]
[328474083,1717426235486,-158.56739487,0.0002731,2]
[328474085,1717426235495,-158.56739487,0.0002735,2]
[328474087,1717426235506,-621.13021097,0.00027399,2]
[328474089,1717426235515,-174.84598599,0.000274,2]
[328474091,1717426235524,-158.56739487,0.00027409,2]
[328474093,1717426235533,-258.90370922,0.00027519,2]
[328474095,1717426235542,-158.56739487,0.00027634,2]
[328474097,1717426235551,-500.0,0.00027698,2]
[328474099,1717426235561,-160.45,0.000277,3]
[328474101,1717426235572,-160.45,0.000277,3]
[328474103,1717426235583,-160.45,0.000277,3]
[328474105,1717426235592,-160.45,0.000277,3]